bitfinex-derivatives/quotes_ETHF0:USTF0_20250804
["timestamp","ask_amount","ask_price","bid_price","bid_amount"]
[1754322086519,0.638,3644.1,3643.9,0.36245438]
[1754322086720,0.3925,3644.0,3643.9,0.36245438]
[1754322087118,0.98627292,3644.7,3643.9,0.36245438]
[1754322087315,0.98627292,3644.7,3644.5,0.54873]
[1754322087621,0.8351,3644.7,3644.3,0.36245438]
[1754322087826,0.8351,3644.7,3644.3,0.91121438]
[1754322087827,1.2009,3644.4,3644.3,0.91121438]
[1754322088015,0.3925,3644.4,3644.3,0.91121438]
[1754322088212,0.3925,3644.7,3644.6,0.54872]
[1754322088519,0.3925,3644.7,3644.6,0.91117438]
[1754322088721,2.0541,3644.7,3644.6,0.36245438]
[1754322088914,2.6028,3644.7,3644.6,0.36245438]
[1754322090618,0.3744,3643.9,3643.8,0.54883]
[1754322090814,0.3925,3643.9,3643.8,1.20173]
[1754322091013,0.3744,3644.4,3644.3,0.83925]
[1754322091320,18.977,3644.4,3644.3,0.83925]
[1754322091521,19.3695,3644.4,3644.3,0.83925]
[1754322091721,1.0305,3644.4,3644.3,1.20165]
[1754322092312,0.98627292,3645.2,3643.9,1.37205]
[1754322092313,1.48595,3645.1,3645.0,0.6529]
[1754322092510,2.21029,3644.8,3644.7,0.2905]
[1754322092920,2.60279,3644.8,3644.7,0.2905]
[1754322093617,2.60279,3644.8,3644.5,0.91113]
[1754322093819,2.0541,3644.6,3644.5,1.20163]
[1754322094012,2.0541,3644.6,3643.9,0.83933]
[1754322094013,0.8265,3644.0,3643.9,0.83933]
[1754322094216,1.5934,3644.0,3643.9,1.20173]
[1754322094416,0.7669,3644.0,3643.9,1.20173]
[1754322094614,0.6561,3644.5,3644.4,0.2905]
[1754322094915,19.3885,3644.5,3644.4,1.20165]
[1754322095120,20.0265,3644.5,3644.4,1.20165]
[1754322095321,21.0501,3644.5,3644.4,0.2905]
[1754322095623,1.0305,3644.4,3644.3,0.83926]
[1754322095920,0.3925,3644.4,3644.3,0.83926]
[1754322096217,0.3925,3644.4,3644.3,1.20166]
[1754322096825,0.3925,3644.4,3644.3,0.6529]
[1754322097411,0.7669,3644.4,3644.3,0.6529]
[1754322097718,2.60291,3644.0,3643.9,0.3624]
[1754322097925,1.37196,3644.2,3642.8,3.82193919]
[1754322097926,0.5489,3643.4,3643.3,3.5702]
[1754322098115,0.7765,3643.4,3643.3,3.5702]
[1754322098519,1.3254,3643.4,3643.3,3.5702]
[1754322098821,1.3254,3643.4,3643.3,0.3624]
[1754322099023,1.3254,3643.4,3642.8,3.75679]
[1754322099024,0.94148,3642.9,3642.8,3.2078]
[1754322099326,0.3925,3642.9,3642.8,3.2078]
[1754322099520,0.3925,3643.1,3642.9,0.54898]
[1754322099717,0.3925,3643.1,3643.0,0.4587]
[1754322100217,0.3828,3643.4,3643.1,0.0284]
[1754322100420,0.5489,3643.5,3643.4,0.5258]
[1754322101024,0.54892,3643.3,3643.2,3.2078]
[1754322101223,1.31322,3643.3,3643.2,3.7052]
[1754322101526,1.75492,3643.3,3643.2,3.6768]
[1754322101729,0.54896,3643.0,3642.9,0.469]
[1754322102025,1.75496,3643.0,3642.9,0.469]
[1754322102821,1.75496,3643.0,3642.8,3.2078]
[1754322103024,1.206,3642.9,3642.8,3.2078]
[1754322103624,0.54899,3642.8,3642.6,0.469]
[1754322103825,0.4417,3642.7,3642.6,0.469]
[1754322104024,1.206,3642.7,3642.6,0.469]
[1754322105224,1.75502,3642.7,3642.6,0.54902]
[1754322105527,0.3828,3642.7,3642.6,1.04642]
[1754322106220,4.58015,3643.2,3642.4,3.2078]
[1754322106419,1.206,3643.0,3642.4,3.2078]
[1754322106620,1.31335,3642.4,3642.1,0.0284]
[1754322106825,1.206,3642.3,3642.2,0.469]
[1754322107324,0.7643,3642.3,3642.2,0.4974]
[1754322107620,0.3828,3642.3,3642.2,0.4974]
[1754322107828,0.7643,3642.7,3642.6,1.04642]
[1754322108124,1.206,3642.7,3642.6,0.469]
[1754322108923,0.54902,3642.6,3642.3,0.4974]
[1754322109124,19.022,3642.9,3642.5,0.54904]
[1754322109125,0.99068,3642.9,3642.5,0.54904]
[1754322109423,0.7643,3642.7,3642.6,0.0284]
[1754322109830,0.54906,3642.4,3642.1,3.75689]
[1754322110128,0.3828,3642.3,3642.2,0.469]
[1754322110426,0.54908,3642.2,3642.1,3.2078]
[1754322110615,1.75508,3642.2,3642.1,3.2078]
[1754322110815,2.58798,3642.2,3642.1,3.2078]
[1754322111015,2.58798,3642.2,3642.1,3.9803]
[1754322111220,2.58798,3642.2,3642.1,3.2078]
[1754322111420,0.8329,3642.0,3641.9,0.89803]
[1754322111620,2.0389,3642.0,3641.9,0.3489]
[1754322111827,0.7643,3642.0,3641.9,0.4227]
[1754322112125,0.7643,3642.0,3641.9,0.8917]
[1754322112726,0.5276,3642.7,3642.6,0.0908]
[1754322112925,1.2919,3642.7,3642.6,0.8633]
[1754322113127,2.0389,3642.7,3642.6,0.8633]
[1754322113325,2.0389,3642.7,3642.6,0.3035]
[1754322113829,2.0389,3642.7,3642.6,0.7725]
[1754322114124,2.0389,3642.7,3642.6,0.8179]
[1754322114326,2.0389,3642.7,3642.6,0.8917]
[1754322114729,2.0389,3642.7,3642.6,0.8633]
[1754322115029,0.8329,3642.7,3642.6,0.8633]
[1754322115233,0.3815,3643.0,3642.9,0.54898]
[1754322115527,2.0389,3643.0,3642.9,0.54898]
[1754322115923,1.0387,3643.0,3642.9,1.44068]
[1754322116120,0.3828,3643.0,3642.9,1.44068]
[1754322116325,1.2919,3643.0,3642.9,1.44068]
[1754322116526,1.5972,3643.0,3642.9,1.44068]
[1754322116725,2.0389,3643.0,3642.9,1.41228]
[1754322117331,1.5972,3643.0,3642.9,1.43288]
[1754322117629,2.0389,3643.0,3642.9,1.43288]
[1754322118223,2.0389,3643.0,3642.9,0.85248]
[1754322118425,0.54901,3642.8,3642.7,0.54901]
[1754322118626,1.38191,3642.8,3642.7,0.54901]
[1754322118828,2.58791,3642.8,3642.7,0.54901]
[1754322119020,5.7957,3642.8,3642.6,0.54901]
[1754322119328,2.0389,3642.7,3642.6,0.54902]
[1754322120227,0.3828,3642.7,3642.6,1.40812]
[1754322120626,0.7643,3642.7,3642.6,0.54902]
[1754322120831,2.0389,3642.7,3642.6,0.54902]
[1754322122422,0.3828,3642.7,3642.6,1.40812]
[1754322122627,0.6572,3642.7,3642.6,1.40812]
[1754322122930,1.2919,3642.7,3642.6,1.40812]
[1754322123128,1.5972,3642.7,3642.6,1.40812]
[1754322123328,2.0389,3642.7,3642.6,1.40812]
[1754322124925,4.4997,3643.2,3643.1,0.54895]
[1754322125124,20.344,3643.2,3643.1,1.40805]
[1754322125329,20.5972,3643.2,3643.1,1.40805]
[1754322125735,2.0389,3643.2,3643.1,1.40805]
[1754322126428,2.0389,3643.2,3643.1,1.38745]
[1754322127029,2.0389,3643.2,3642.8,4.60085]
[1754322127030,3.41124,3643.2,3642.8,3.2078]
[1754322127233,0.82343,3642.6,3642.5,0.54903]
[1754322127435,0.8329,3642.5,3642.4,0.54905]
[1754322127733,2.0389,3642.5,3642.4,0.54905]
[1754322132825,2.58794,3642.5,3642.4,0.54905]
[1754322133031,0.8235,3642.4,3641.9,4.58061]
[1754322133230,0.2744,3642.5,3641.9,4.58061]
[1754322133231,2.0284,3642.0,3641.9,4.10383]
[1754322133430,2.0284,3642.0,3641.9,4.05923]
[1754322133632,2.0284,3642.0,3641.9,4.58263]
[1754322133829,2.0284,3642.0,3641.9,4.56873]
[1754322134034,2.0284,3642.0,3641.9,4.52413]
[1754322134232,2.0284,3642.0,3641.9,3.75693]
[1754322135835,2.0284,3641.9,3641.7,0.54915]
[1754322136041,2.0284,3641.5,3641.4,0.5492]
[1754322136233,2.0284,3641.5,3641.3,0.54922]
[1754322136234,2.0284,3641.4,3641.3,0.54922]
[1754322136440,3.2078,3641.9,3641.6,1.37487]
[1754322136441,1.0254,3641.7,3641.6,1.37487]
[1754322136741,5.2362,3642.3,3642.2,1.31628]
[1754322137038,2.0284,3642.2,3642.1,0.54909]
[1754322137543,2.0284,3642.2,3642.1,1.37479]
[1754322137936,2.73697918,3642.2,3642.1,0.85139]
[1754322138344,2.73697918,3642.2,3642.1,1.31629]
[1754322138530,2.0284,3642.2,3642.1,1.31629]
[1754322138930,20.6182,3642.2,3642.1,1.37479]
[1754322139337,21.0634,3642.2,3642.1,1.31629]
[1754322139538,21.0634,3642.2,3642.1,0.85139]
[1754322139736,2.0284,3642.1,3642.0,0.5491]
[1754322140038,1.2179,3642.0,3641.9,0.54912]
[1754322140338,2.0284,3642.0,3641.9,0.85142]
[1754322140838,2.0284,3642.0,3641.9,1.31632]
[1754322141031,0.3944,3642.0,3641.9,1.37482]
[1754322141240,0.3944,3642.0,3641.9,4.58262]
[1754322141442,19.4244,3642.0,3641.9,4.58262]
[1754322141641,1.2956,3642.4,3642.3,0.89597]
[1754322141846,21.0584,3642.4,3642.3,1.37477]
[1754322142137,1.11851958,3642.4,3642.3,1.37477]
[1754322142345,0.3944,3642.7,3642.6,1.05012]
[1754322142539,19.8047,3642.7,3642.6,1.37472]
[1754322142737,21.0604,3642.7,3642.6,1.37472]
[1754322142937,21.0604,3642.7,3642.6,0.54902]
[1754322143138,2.57742,3642.6,3642.5,0.54903]
[1754322143342,2.71039338,3642.6,3642.5,0.54903]
[1754322143543,0.8105,3642.0,3641.9,3.2078]
[1754322143742,0.8105,3641.4,3641.3,0.8118]
[1754322143949,2.0284,3641.4,3641.3,1.33872]
[1754322144145,1.8389,3641.4,3641.3,0.54922]
[1754322145150,0.8105,3641.4,3641.2,0.54923]
[1754322145445,1.6501,3641.3,3641.2,0.54923]
[1754322146052,1.2557,3641.3,3640.7,3.2078]
[1754322146350,2.0284,3640.8,3640.7,1.58711]
[1754322146555,2.0284,3640.8,3640.7,1.83991]
[1754322146743,2.0284,3640.8,3640.7,2.61141]
[1754322146946,1.5832,3640.8,3640.7,2.61141]
[1754322147347,0.5229,3641.3,3641.2,0.54922]
[1754322147653,19.5629,3641.3,3641.2,2.61132]
[1754322147846,0.5229,3641.3,3641.2,2.61132]
[1754322148054,1.7408,3641.7,3641.6,0.8257]
[1754322148249,21.0704,3641.7,3641.6,2.61127]
[1754322148453,2.0284,3641.3,3641.2,1.12213]
[1754322148648,2.0284,3641.3,3641.2,2.22603]
[1754322148850,2.0284,3641.6,3641.5,2.0621]
[1754322149046,21.0704,3641.6,3641.5,2.0621]
[1754322149248,2.0284,3641.6,3641.5,0.7672]
[1754322149544,21.0704,3641.6,3641.5,0.7672]
[1754322150047,21.0704,3641.6,3641.5,0.3023]
[1754322150248,19.8147,3641.6,3641.2,0.4649]
[1754322150454,2.0284,3641.3,3641.1,0.54925]
[1754322150656,2.0284,3641.2,3641.1,0.54925]
[1754322150843,2.0284,3641.1,3641.0,0.54925]
[1754322151352,1.35976,3641.1,3640.9,1.01417]
[1754322151547,21.0694,3641.0,3640.9,0.5729]
[1754322151748,21.0694,3641.0,3640.9,0.3023]
[1754322151943,1.10711,3640.7,3640.6,0.5729]
[1754322152158,2.57771,3640.7,3640.6,0.5729]
[1754322152358,0.8105,3640.4,3640.3,0.9591]
[1754322152557,2.0284,3640.4,3640.3,1.0378]
[1754322152853,1.2179,3640.2,3640.1,1.01429]
[1754322153053,0.7727,3640.2,3640.1,1.78579]
[1754322153356,1.2179,3640.2,3640.1,1.78579]
[1754322153659,1.2179,3640.2,3640.1,0.8511]
[1754322153950,1.7673,3640.1,3640.0,3.2078]
[1754322154754,1.7673,3640.1,3639.9,0.98902457]
[1754322154954,20.2689,3640.0,3639.9,0.98902457]
[1754322155854,19.056,3640.0,3639.9,2.22542457]
[1754322156154,20.2739,3640.0,3639.9,0.98902457]
[1754322156750,0.5494,3640.2,3639.9,0.98902457]
[1754322156953,20.2719,3640.0,3639.9,0.98902457]
[1754322157152,20.2719,3640.0,3639.9,0.29742457]
[1754322157459,0.3783,3638.7,3638.6,0.54961]
[1754322157649,0.3944,3638.6,3638.2,0.4649]
[1754322157848,19.104,3638.7,3638.3,0.93496]
[1754322157849,0.7727,3638.4,3638.3,0.93496]
[1754322158048,0.7727,3638.4,3638.3,1.32116]
[1754322158251,0.7727,3638.4,3638.1,0.54969]
[1754322158452,0.7727,3638.2,3638.1,1.78609]
[1754322158847,3.2078,3639.2,3638.3,1.37416]
[1754322158848,19.144,3638.6,3638.3,1.37416]
[1754322159049,19.144,3638.6,3638.4,0.54965]
[1754322159254,0.3783,3639.1,3639.0,0.54956]
[1754322159453,1.1258,3639.4,3639.0,0.4649]
[1754322159653,19.147,3639.1,3639.0,1.78596]
[1754322159853,19.147,3639.1,3639.0,1.2364]
[1754322160154,0.54958,3638.9,3638.8,3.6692]
[1754322160354,1.1515,3638.7,3638.6,0.4614]
[1754322160553,1.1515,3639.0,3638.4,0.4614]
[1754322160755,19.9535,3638.9,3638.4,1.2801]
[1754322161063,1.1515,3638.8,3638.7,0.5496]
[1754322161267,1.1515,3638.8,3638.7,1.4219]
[1754322161558,0.7965,3638.8,3638.7,1.8297]
[1754322161756,0.7965,3638.8,3638.7,1.2801]
[1754322161959,19.9495,3638.8,3638.7,0.8692]
[1754322162150,0.54959,3638.9,3638.5,0.54963]
[1754322162350,0.7965,3638.7,3638.6,0.4614]
[1754322162557,19.152,3638.8,3638.6,1.82971]
[1754322162756,20.4981,3638.8,3638.7,0.4614]
[1754322162961,20.8531,3638.8,3638.7,0.4614]
[1754322163157,20.8531,3638.8,3637.8,1.37434]
[1754322163158,0.54967,3638.3,3638.1,0.4078]
[1754322163365,1.70117,3638.3,3638.2,0.4614]
[1754322163562,20.84817,3638.3,3638.2,0.4614]
[1754322163761,19.9435,3638.3,3638.2,1.2801]
[1754322164061,19.147,3638.3,3638.2,1.2801]
[1754322164455,0.7965,3638.9,3638.3,1.37418]
[1754322164653,19.9465,3638.8,3638.7,1.8297]
[1754322164961,19.9425,3638.8,3638.7,1.2801]
[1754322165163,19.146,3638.8,3638.4,0.54965]
[1754322165359,0.7497,3638.6,3638.5,0.4614]
[1754322165559,0.3947,3638.6,3638.5,1.2801]
[1754322165860,19.508,3638.6,3638.1,0.4614]
[1754322166058,1.34619,3638.2,3638.0,3.2078]
[1754322166263,0.7965,3638.1,3638.0,4.21891]
[1754322166463,0.7965,3638.3,3638.2,0.95749]
[1754322166664,20.09636,3638.4,3638.1,0.4078]
[1754322166866,20.09636,3638.4,3638.0,3.2078]
[1754322166867,19.152,3638.4,3638.2,1.36838]
[1754322167063,19.152,3638.4,3638.2,0.54968]
[1754322167458,19.152,3638.4,3638.3,0.4614]
[1754322167661,1.1515,3638.6,3638.5,0.4614]
[1754322167962,20.85412,3638.6,3638.5,0.4614]
[1754322168562,20.3045,3638.6,3638.5,0.4614]
[1754322168860,19.153,3638.6,3638.5,1.2801]
[1754322169060,0.54962,3638.6,3638.5,0.8692]
[1754322169259,0.54967,3638.4,3638.2,0.54967]
[1754322169459,0.7965,3638.3,3638.2,1.36837]
[1754322169963,1.34615,3638.5,3638.1,0.8692]
[1754322170264,0.7965,3638.5,3638.3,1.82976]
[1754322170459,0.355,3638.9,3638.3,0.54966]
[1754322170764,1.34612,3638.7,3638.4,0.54964]
[1754322170955,19.158,3638.6,3638.5,1.82973]
[1754322171161,19.5598,3638.6,3638.5,1.2801]
[1754322171465,19.158,3638.6,3638.5,1.2801]
[1754322171661,0.3947,3638.7,3638.6,0.54962]
[1754322171867,0.3947,3638.7,3638.6,1.82972]
[1754322172055,0.7965,3638.7,3638.6,1.82972]
[1754322172260,19.9545,3638.7,3638.6,1.2801]
[1754322172554,19.9515,3638.7,3638.6,1.2801]
[1754322172861,0.7965,3639.2,3638.7,1.2801]
[1754322173062,19.154,3639.1,3638.4,4.58191]
[1754322173365,1.86984,3638.5,3638.4,5.3219]
[1754322173556,2.52334,3638.5,3638.4,1.2954]
[1754322173756,1.2734,3638.2,3638.1,1.8507]
[1754322173968,1.9737,3638.2,3638.1,1.8507]
[1754322174170,1.9737,3638.2,3638.1,2.1141]
[1754322174364,1.9737,3638.2,3638.1,0.5706]
[1754322174664,1.9737,3638.2,3638.1,1.7063]
[1754322175066,1.9737,3638.2,3638.1,2.1141]
[1754322175258,19.8157,3638.5,3638.4,0.2724]
[1754322175456,20.8302,3638.5,3638.4,1.2954]
[1754322175660,20.8302,3638.5,3638.4,2.25595]
[1754322175661,1.3202,3638.5,3638.4,2.25595]
[1754322175864,20.4732,3638.5,3638.4,2.1141]
[1754322176062,0.7497,3638.8,3638.5,0.54964]
[1754322176264,19.6767,3638.7,3638.6,2.66371]
[1754322176457,0.5237,3638.7,3638.6,2.66371]
[1754322176661,19.152,3638.7,3638.6,1.38361]
[1754322176856,1.5719,3638.7,3638.6,0.834]
[1754322177067,1.9737,3638.7,3638.6,0.834]
[1754322177264,1.3202,3638.7,3638.6,1.032]
[1754322177566,0.3947,3638.9,3638.8,0.54959]
[1754322177763,20.2185,3638.9,3638.8,2.66369]
[1754322178065,20.8312,3638.9,3638.8,2.1141]
[1754322178569,1.3202,3638.9,3638.8,2.1141]
[1754322178762,0.72106894,3639.5,3638.6,0.4109]
[1754322178964,1.6752,3639.5,3639.4,1.7063]
[1754322179172,0.72106894,3639.6,3639.5,2.66358]
[1754322179464,0.4018,3640.0,3639.8,0.54944]
[1754322179667,0.7965,3640.0,3639.9,1.2801]
[1754322180172,3.75714,3640.5,3639.9,0.8692]
[1754322180365,0.72198245,3640.4,3640.3,0.8692]
[1754322180567,1.51848245,3640.4,3640.3,1.2801]
[1754322180766,0.54938,3640.2,3640.0,3.6692]
[1754322181071,0.54938,3640.2,3640.1,0.54938]
[1754322181072,0.72198245,3640.2,3640.1,0.54938]
[1754322181268,0.54941,3640.0,3639.7,0.54944]
[1754322181460,1.27138245,3640.1,3639.8,0.54943]
[1754322181664,1.27138245,3640.1,3639.7,0.8187]
[1754322181665,1.11668245,3640.4,3639.6,1.37367]
[1754322181867,0.7965,3640.9,3640.8,1.01069]
[1754322182065,0.98627292,3641.0,3640.5,0.54933]
[1754322182266,0.54929,3640.8,3640.5,0.54932]
[1754322182466,0.72313144,3640.8,3640.6,0.5493]
[1754322182768,19.89113144,3641.0,3640.9,1.2801]
[1754322182963,0.72313144,3641.0,3640.9,1.2801]
[1754322183169,0.72313144,3641.1,3641.0,1.82935]
[1754322183373,0.54926,3640.9,3640.8,3.2078]
[1754322183566,1.1515,3641.0,3640.8,3.6692]
[1754322183766,1.1515,3640.9,3640.8,3.6692]
[1754322184168,1.70076,3640.9,3640.8,3.6692]
[1754322184368,1.70076,3640.9,3640.8,3.2078]
[1754322184571,0.4018,3640.9,3640.8,4.4879]
[1754322184874,0.7965,3640.9,3640.8,4.4879]
[1754322185080,1.1515,3640.9,3640.8,3.6692]
[1754322186274,1.1515,3640.9,3640.8,4.4879]
[1754322186574,0.7965,3640.9,3640.8,4.4879]
[1754322186770,0.54923,3641.2,3640.8,3.2078]
[1754322186972,0.7965,3640.9,3640.0,3.2078]
[1754322187170,3.2078,3640.9,3640.6,0.54931]
[1754322187365,3.2078,3640.9,3640.7,0.54928]
[1754322187774,3.2078,3640.9,3640.8,0.8187]
[1754322188069,3.75706,3640.9,3640.8,0.8187]
[1754322188874,0.3947,3640.9,3640.8,0.8187]
[1754322189076,0.54926,3640.9,3640.5,0.54932]
[1754322189376,0.94402,3640.6,3640.4,3.2078]
[1754322189568,0.54932,3640.5,3640.3,1.2801]
[1754322189767,0.54932,3640.5,3640.2,0.54936]
[1754322189968,0.94402,3640.6,3640.2,0.54936]
[1754322190173,0.94402,3640.6,3640.5,1.2801]
[1754322190770,0.3947,3640.6,3640.5,1.2801]
[1754322190970,0.5493,3640.7,3640.5,1.2801]
[1754322191179,0.942,3640.7,3640.6,1.2433]
[1754322191476,1.3533,3640.7,3640.6,1.2433]
[1754322191772,0.942,3640.7,3640.6,1.2433]
[1754322192073,1.8048,3640.7,3640.6,1.2433]
[1754322193177,0.3927,3640.7,3640.6,1.2433]
[1754322193576,1.2555,3640.7,3640.6,0.8556]
[1754322193776,1.2555,3640.8,3640.3,0.54935]
[1754322194081,0.54932,3640.6,3639.9,3.2078]
[1754322194280,0.94202,3640.6,3640.5,1.2433]
[1754322195374,1.80482,3640.6,3640.5,1.2433]
[1754322195576,0.3927,3640.6,3640.5,1.2433]
[1754322196076,3.6005,3640.9,3639.9,3.2078]
[1754322196283,1.2555,3640.8,3640.0,1.2433]
[1754322196578,1.3894,3640.7,3640.6,0.8315]
[1754322196778,2.6449,3640.7,3640.6,1.6871]
[1754322197475,0.8284,3640.7,3640.6,2.0748]
[1754322197680,1.4854,3640.7,3640.6,2.0748]
[1754322197875,2.6449,3640.7,3640.6,2.0748]
[1754322198782,1.4854,3640.7,3640.6,2.0748]
[1754322199377,3.2078,3640.9,3640.7,0.5493]
[1754322199679,3.4869,3640.9,3640.8,2.0748]
[1754322199876,3.2078,3640.9,3640.8,2.0748]
[1754322200979,4.4592,3640.9,3640.8,1.6871]
[1754322201184,4.4592,3640.9,3640.3,3.2078]
[1754322201185,0.8401,3640.7,3640.6,0.8479]
[1754322201480,2.0956,3640.7,3640.6,1.8172]
[1754322201682,2.0956,3640.7,3640.6,2.2364]
[1754322202182,2.0956,3640.7,3640.3,1.37337]
[1754322202183,3.2078,3640.9,3640.8,2.62408]
[1754322202382,1.2328,3641.2,3641.1,1.38073]
[1754322202588,2.0956,3641.2,3641.1,2.0748]
[1754322202780,2.0956,3641.2,3641.1,1.6871]
[1754322203085,2.0956,3641.0,3640.9,0.54926]
[1754322203377,2.0956,3641.0,3640.9,1.38076]
[1754322203583,0.9361,3641.0,3640.9,2.62406]
[1754322204983,3.8796,3641.3,3641.2,1.38072]
[1754322205180,3.2078,3641.3,3641.2,2.62402]
[1754322206283,2.0956,3641.6,3641.5,2.23627]
[1754322206478,3.2078,3641.8,3641.7,2.62394]
[1754322206680,3.7512,3641.8,3641.7,2.62394]
[1754322206881,5.3034,3641.8,3641.7,2.62394]
[1754322207277,4.8519,3641.8,3641.7,2.62394]
[1754322207477,5.3034,3641.8,3641.7,2.62394]
[1754322207677,5.3034,3641.8,3641.7,2.0748]
[1754322207889,0.8401,3641.6,3641.5,0.84777]
[1754322208082,2.0956,3641.6,3641.5,2.23627]
[1754322208577,2.0956,3641.6,3641.5,0.54917]
[1754322209679,2.0956,3641.6,3641.5,2.23627]
[1754322209879,0.9361,3641.6,3641.5,2.62397]
[1754322210289,1.3474,3641.6,3641.5,2.62397]
[1754322210590,2.0956,3642.1,3642.0,0.8315]
[1754322210888,2.0956,3642.1,3642.0,1.6871]
[1754322211083,3.2078,3642.2,3642.0,2.62388]
[1754322211288,1.38915,3642.4,3642.3,1.38055]
[1754322211490,0.68035076,3642.4,3642.3,2.62385]
[1754322211689,1.13935166,3642.6,3642.5,1.38052]
[1754322211883,0.86025166,3642.6,3642.5,1.38052]
[1754322212088,0.86025166,3642.6,3642.5,5.83162]
[1754322212089,0.13695076,3642.6,3642.5,5.83162]
[1754322212391,1.0,3643.0,3642.9,0.8315]
[1754322212586,1.0,3643.0,3642.9,2.0748]
[1754322212890,1.0,3643.0,3642.9,4.4511]
[1754322213285,1.3927,3643.0,3642.9,4.4511]
[1754322213492,1.0,3643.0,3642.9,4.4511]
[1754322214193,1.804,3643.0,3642.9,4.4511]
[1754322214387,1.94069877,3643.0,3642.9,4.4511]
[1754322214685,1.1366959,3643.0,3642.9,4.4511]
[1754322214889,1.0,3643.0,3642.9,4.4511]
[1754322215088,1.3927,3643.0,3642.9,4.4511]
[1754322215586,1.804,3643.0,3642.9,4.4511]
[1754322215893,2.0831,3643.0,3642.9,5.2826]
[1754322216089,1.6718,3643.0,3642.9,5.2826]
[1754322216292,3.0956,3643.0,3642.9,4.8949]
[1754322217391,3.0956,3643.0,3642.9,5.2826]
[1754322217588,1.9361,3643.0,3642.9,5.2826]
[1754322218092,1.5434,3643.0,3642.9,5.2826]
[1754322218294,1.9361,3643.0,3642.9,5.2826]
[1754322218495,3.0956,3643.0,3642.9,5.2826]
[1754322218793,0.657,3642.6,3642.5,0.2613]
[1754322218982,1.0,3643.0,3642.2,4.58047]
[1754322218983,2.0956,3642.5,3642.4,2.23613]
[1754322219290,2.3474,3643.0,3642.9,2.62376]
[1754322219594,1.0,3643.0,3642.9,2.62376]
[1754322221091,0.5353,3644.0,3643.9,2.1639]
[1754322221391,1.1349,3644.0,3643.9,2.5464]
[1754322221597,1.6472,3644.0,3643.9,2.5464]
[1754322221791,2.0499,3644.0,3643.9,2.5464]
[1754322222694,2.0499,3644.0,3643.9,2.1639]
[1754322222888,3.2078,3644.1,3643.9,2.5464]
[1754322223095,1.2514,3644.4,3644.0,1.9976]
[1754322223293,2.0499,3644.2,3644.1,1.6151]
[1754322224088,2.0499,3644.2,3644.1,0.2543]
[1754322224289,3.2078,3644.6,3643.2,3.42788189]
[1754322224497,0.4513,3644.1,3643.9,0.5488]
[1754322224696,2.0499,3644.0,3643.9,1.068]
[1754322224891,2.0499,3644.0,3643.9,1.4423]
[1754322225092,2.0499,3644.0,3643.9,1.8751]
[1754322225292,2.0499,3644.0,3643.9,2.5464]
[1754322225498,1.384,3644.3,3644.2,0.54877]
[1754322225699,2.0499,3644.3,3644.2,2.54637]
[1754322226397,1.384,3644.3,3644.2,2.54637]
[1754322226595,0.9327,3644.3,3644.2,2.54637]
[1754322226795,0.4513,3644.5,3644.4,2.54634]
[1754322227089,3.4569,3644.6,3644.5,1.9976]
[1754322227291,4.1405,3644.6,3644.5,1.9976]
[1754322227499,5.2577,3644.6,3644.5,1.9976]
[1754322227699,0.8487,3644.1,3644.0,3.7566]
[1754322227899,2.0499,3644.1,3644.0,3.7566]
[1754322228100,2.0499,3644.1,3644.0,0.5488]
[1754322228405,0.2862,3644.1,3644.0,2.5464]
[1754322228600,2.0499,3644.1,3644.0,2.5464]
[1754322228792,1.2012,3644.0,3643.9,0.5488]
[1754322229004,2.0499,3644.0,3643.9,0.5488]
[1754322230106,2.0499,3644.0,3643.9,2.5464]
[1754322230294,1.1959,3644.0,3643.9,2.5464]
[1754322230699,0.2862,3644.0,3643.9,2.5464]
[1754322230901,3.2078,3644.1,3644.0,1.9976]
[1754322231602,4.855,3644.9,3644.8,0.54868]
[1754322231796,4.855,3644.9,3644.3,0.3743]
[1754322231797,1.2498,3644.7,3644.6,0.5487]
[1754322232006,1.6472,3644.7,3644.6,0.5487]
[1754322232202,2.0499,3644.7,3644.6,0.5487]
[1754322233904,2.0499,3644.7,3644.5,0.54872]
[1754322234103,0.938,3644.5,3644.3,0.54874]
[1754322234305,1.2514,3644.3,3643.7,1.37211]
[1754322234602,1.6472,3643.8,3643.7,0.81374]
[1754322234903,2.0499,3643.6,3643.5,0.54887]
[1754322235505,2.0499,3643.6,3643.5,0.80317]
[1754322235901,2.0499,3643.6,3643.5,2.11367]
[1754322236097,0.938,3643.9,3643.8,2.54643]
[1754322236309,0.5353,3643.9,3643.8,2.54643]
[1754322236697,1.6472,3643.9,3643.8,2.54643]
[1754322236905,2.0499,3643.9,3643.8,2.54643]
[1754322237300,0.5353,3643.9,3643.8,2.54643]
[1754322237507,2.0499,3643.9,3643.8,1.73113]
[1754322237707,2.0499,3643.9,3643.8,0.54883]
[1754322238408,2.0499,3643.9,3643.8,1.44233]
[1754322239106,2.0499,3643.9,3643.8,0.81373]
[1754322239410,2.0499,3643.9,3643.8,2.54643]
[1754322239610,2.0499,3643.9,3643.8,2.16393]
[1754322239812,2.0499,3643.8,3643.7,0.54883]
[1754322240708,1.1959,3643.8,3643.7,1.06803]
[1754322241011,0.5353,3644.0,3643.9,2.54641]
[1754322241200,1.6472,3644.0,3643.9,2.54641]
[1754322241406,2.36715439,3644.0,3643.9,1.44231]
[1754322241606,2.0499,3644.0,3643.9,0.54881]